Workbook

Sheet table 1
B2: Table 1: 2015/16 adjusted national budget
D3: Main appropriation (ENE) | H3: Adjustments appropriation (AENE) | J3: Adjusted appropriation (AENE)
F4: Special
B5: R thousand | F5: appropriation
B7: Appropriation by vote | D7: =SUM(D8) -> 679497512 | H7: =+H8+H9 -> 1857537 | J7: =+D7+H7 -> 681355049
B8: Main appropriation | D8: 679497512
B9: Total adjustments | H9: =SUM(H10+H11+H12+H13+H14+H15) -> 1857537
B10: Roll-overs | H10: 1616838
B11: Unforeseeable and unavoidable expenditure | H11: 753106
B12: National public sector salary adjustment | H12: 1173468
B13: Unallocated and announced in the 2015 Budget | H13: 301000
B14: Self-financing | H14: 1196821
B15: Declared unspent funds | H15: -3183696
B16: Direct charges against the National Revenue Fund | D16: 537847189 | H16: 6908776 | J16: =+D16+H16 -> 544755965
B17: Of which:
B18: Debt service costs | D18: 126440428 | H18: 1461590 | J18: =SUM(D18+H18) -> 127902018
B19: Provincial equitable share: | D19: 382673477 | H19: 3826532 | J19: 386500009
B20: Public sector salary adjustment | H20: 3826532 | J20: =+H20 -> 3826532
B21: National Revenue Fund payments | D21: 121000 | H21: 560654 | J21: 681654
B22: Skills levy and sector education and training authorities | D22: 14690000 | H22: 1110000 | J22: 15800000
B23: Magistrates' salaries | D23: 1880769 | H23: -50000 | J23: =+D23+H23 -> 1830769
B24: Subtotal | D24: =SUM(D16,D7) -> 1217344701 | H24: =SUM(H7+H16) -> 8766313 | J24: =+D24+H24 -> 1226111014
B25: Unallocated reserves | D25: 5000000 | H25: -5000000 | J25: =SUM(D25:H25) -> 0
B26: National government projected underspending | H26: -3000000 | J26: =SUM(D26:H26) -> -3000000
B27: Local government repayment to the National Revenue Fund | H27: -1200000 | J27: =SUM(D27:H27) -> -1200000
B28: Total adjustments expenditure estimate | D28: =SUM(D24:D27) -> 1222344701 | H28: =SUM(H24:H27) -> -433687 | J28: =+J24+J25+J26+J27 -> 1221911014
B30: Eskom Special Appropriation Act, 2015 | F30: 23000000 | J30: =SUM(D30:H30) -> 23000000
B31: New Development Bank | F31: 2019000 | J31: =SUM(D31:H31) -> 2019000
B32: Total estimated expenditure | D32: =SUM(D27:D30) -> 1222344701 | F32: =+F30+F31 -> 25019000 | H32: =SUM(H28) -> -433687 | J32: =SUM(D32+F32+H32) -> 1246930014
B34: Main budget revenue | D34: =SUM(D35:D37) -> 1049290619 | H34: =SUM(H35:H37) -> 21373860 | J34: =SUM(J35:J37) -> 1070664479
B35: Tax revenue | D35: 1081275000 | H35: =1073700000-D35 -> -7575000 | J35: =+D35+H35 -> 1073700000
B36: Non-tax revenue | D36: 19037528 | H36: =47986388-D36 -> 28948860 | J36: =+D36+H36 -> 47986388
B37: Less: Estimate of Southern Africa Customs Union payments | D37: -51021909 | H37: =-51021909-D37 -> 0 | J37: =+D37+H37 -> -51021909
B39: Budget balance | D39: =+D34-D28 -> -173054082 | H39: =+H34-H28 -> 21807547 | J39: =+J32-J34 -> 176265535

Sheet table 2
B2: Table 2: Adjusted appropriations per vote and adjusted estimates of direct charges against the National Revenue Fund
B3: Vote number and title | E3: 2015/16
F4: Adjustments appropriation
H5: Declared | J5: Total | L5: Value of
D6: Main | E6: Special | F6: Roll- | G6: Unforeseeable/ | H6: unspent | I6: Other | J6: adjustments | K6: Adjusted | L6: Virements
B7: R thousand | D7: appropriation | E7: appropriation | F7: overs | G7: unavoidable | H7: funds | I7: adjustments | J7: appropriation | K7: appropriation | L7: and shifts
B8: 1 | C8: The Presidency | D8: 510330 | E8: – | F8: – | G8: – | H8: – | I8: -34401 | J8: -34401 | K8: 475929 | L8: 11087
B9: 2 | C9: Parliament | D9: 1566922 | E9: – | F9: – | G9: – | H9: – | I9: 27316 | J9: 27316 | K9: 1594238 | L9: 7482
B10: 3 | C10: Communications | D10: 1280888 | E10: – | F10: – | G10: – | H10: – | I10: 10000 | J10: 10000 | K10: 1290888 | L10: –
B11: 4 | C11: Cooperative Governance and Traditional Affairs | D11: 69314159 | E11: – | F11: 1498818 | G11: – | H11: – | I11: 2500 | J11: 1501318 | K11: 70815477 | L11: 23161
B12: 5 | C12: Home Affairs | D12: 6450822 | E12: – | F12: – | G12: – | H12: – | I12: 897903 | J12: 897903 | K12: 7348725 | L12: 17300
B13: 6 | C13: International Relations and Cooperation | D13: 5698634 | E13: – | F13: – | G13: 720000 | H13: – | I13: 92220 | J13: 812220 | K13: 6510854 | L13: 266486
B14: 7 | C14: National Treasury | D14: 26957304 | E14: 2019000 | F14: – | G14: – | H14: -264500 | I14: 14257 | J14: (250 243) | K14: 28726061 | L14: 328395
B15: 8 | C15: Planning, Monitoring and Evaluation | D15: 717694 | E15: – | F15: – | G15: – | H15: – | I15: 36506 | J15: 36506 | K15: 754200 | L15: 6137
B16: 9 | C16: Public Enterprises | D16: 267481 | E16: 23000000 | F16: – | G16: 33106 | H16: – | I16: 2007 | J16: 35 113 | K16: 23302594 | L16: 2513
B17: 10 | C17: Public Service and Administration | D17: 930868 | E17: – | F17: 5000 | G17: – | H17: – | I17: 5614 | J17: 10614 | K17: 941482 | L17: 7508
B18: 11 | C18: Public Works | D18: 6411087 | E18: – | F18: – | G18: – | H18: -98865 | I18: – | J18: -98865 | K18: 6312222 | L18: 2950
B19: 12 | C19: Statistics South Africa | D19: 2245208 | E19: – | F19: 69405 | G19: – | H19: – | I19: 8643 | J19: 78048 | K19: 2323256 | L19: 41566
B20: 13 | C20: Women | D20: 187002 | E20: – | F20: – | G20: – | H20: – | I20: 2100 | J20: 2100 | K20: 189102 | L20: 3565
B21: 14 | C21: Basic Education | D21: 21511140 | E21: – | F21: – | G21: – | H21: -224714 | I21: – | J21: -224714 | K21: 21286426 | L21: 110328
B22: 15 | C22: Higher Education and Training | D22: 41843955 | E22: – | F22: – | G22: – | H22: -30600 | I22: 66783 | J22: 36183 | K22: 41880138 | L22: 197815
B23: 16 | C23: Health | D23: 36468018 | E23: – | F23: – | G23: – | H23: -216283 | I23: 2190 | J23: -214093 | K23: 36253925 | L23: 324783
B24: 17 | C24: Social Development | D24: 138168640 | E24: – | F24: – | G24: – | H24: -275000 | I24: – | J24: -275000 | K24: 137893640 | L24: 72697
B25: 18 | C25: Correctional Services | D25: 20617584 | E25: – | F25: – | G25: – | H25: -30000 | I25: 970 | J25: -29030 | K25: 20588554 | L25: 849260
B26: 19 | C26: Defence and Military Veterans | D26: 44579390 | E26: – | F26: – | G26: – | H26: – | I26: 508771 | J26: 508771 | K26: 45088161 | L26: 478314
B27: 20 | C27: Independent Police Investigative Directorate | D27: 234781 | E27: – | F27: – | G27: – | H27: – | I27: – | J27: – | K27: 234781 | L27: 12515
B28: 21 | C28: Justice and Constitutional Development | D28: 14983969 | E28: – | F28: – | G28: – | H28: -60000 | I28: 86804 | J28: 26804 | K28: 15010773 | L28: 366062
B29: 22 | C29: Office of the Chief Justice and Judicial Administration | D29: 742417 | E29: – | F29: – | G29: – | H29: – | I29: 40962 | J29: 40962 | K29: 783379 | L29: 45619
B30: 23 | C30: Police | D30: 76377059 | E30: – | F30: 8090 | G30: – | H30: -88000 | I30: 423699 | J30: 343789 | K30: 76720848 | L30: 447485
B31: 24 | C31: Agriculture, Forestry and Fisheries | D31: 6383007 | E31: – | F31: – | G31: – | H31: -16633 | I31: 42376 | J31: 25743 | K31: 6408750 | L31: 120051
B32: 25 | C32: Economic Development | D32: 885778 | E32: – | F32: – | G32: – | H32: – | I32: – | J32: – | K32: 885778 | L32: 21240
B33: 26 | C33: Energy | D33: 7482094 | E33: – | F33: 35525 | G33: – | H33: -250000 | I33: – | J33: -214475 | K33: 7267619 | L33: 26174
B34: 27 | C34: Environmental Affairs | D34: 5947989 | E34: – | F34: – | G34: – | H34: -20000 | I34: 15308 | J34: -4692 | K34: 5943297 | L34: 418633
B35: 28 | C35: Labour | D35: 2686867 | E35: – | F35: – | G35: – | H35: – | I35: 17367 | J35: 17367 | K35: 2704234 | L35: 91769
B36: 29 | C36: Mineral Resources | D36: 1618542 | E36: – | F36: – | G36: – | H36: – | I36: 20000 | J36: 20000 | K36: 1638542 | L36: 70925
B37: 30 | C37: Science and Technology | D37: 7482120 | E37: – | F37: – | G37: – | H37: -20000 | I37: 3986 | J37: -16014 | K37: 7466106 | L37: 12547
B38: 31 | C38: Small Business Development | D38: 1103188 | E38: – | F38: – | G38: – | H38: – | I38: 24332 | J38: 24332 | K38: 1127520 | L38: 15879
B39: 32 | C39: Telecommunications and Postal Services | D39: 1413328 | E39: – | F39: – | G39: – | H39: – | I39: -8075 | J39: -8075 | K39: 1405253 | L39: 4774
B40: 33 | C40: Tourism | D40: 1800233 | E40: – | F40: – | G40: – | H40: -10000 | I40: 3945 | J40: -6055 | K40: 1794178 | L40: 255697
B41: 34 | C41: Trade and Industry | D41: 9593715 | E41: – | F41: – | G41: – | H41: -134400 | I41: 38529 | J41: -95871 | K41: 9497844 | L41: 565041
B42: 35 | C42: Transport | D42: 53357297 | E42: – | F42: – | G42: – | H42: -43220 | I42: 301000 | J42: 257780 | K42: 53615077 | L42: 41710
B43: 36 | C43: Water and Sanitation | D43: 16446530 | E43: – | F43: – | G43: – | H43: -700000 | I43: – | J43: -700000 | K43: 15746530 | L43: 1237171
B44: 37 | C44: Arts and Culture | D44: 3919859 | E44: – | F44: – | G44: – | H44: -93812 | I44: – | J44: -93812 | K44: 3826047 | L44: 127216
B45: 38 | C45: Human Settlements | D45: 30943381 | E45: – | F45: – | G45: – | H45: -400000 | I45: – | J45: -400000 | K45: 30543381 | L45: 286725
B46: 39 | C46: Rural Development and Land Reform | D46: 9379684 | E46: – | F46: – | G46: – | H46: -200000 | I46: 17677 | J46: -182323 | K46: 9197361 | L46: 432496
B47: 40 | C47: Sport and Recreation South Africa | D47: 988548 | E47: – | F47: – | G47: – | H47: -7669 | I47: – | J47: -7669 | K47: 980879 | L47: 29005
B48: Total appropriation by vote | D48: 679497512 | E48: 25019000 | F48: 1616838 | G48: 753106 | H48: -3183696 | I48: 2671289 | J48: 1 857 537 | K48: 706374049 | L48: 4250157
B54: Table 2: Adjusted appropriations per vote and adjusted estimates of direct charges against the National Revenue Fund (continued)
D55: 2015/16
F56: Adjustments appropriation
H57: Declared | J57: Total
D58: Main | E58: Special | F58: Roll- | G58: Unforeseeable/ | H58: unspent | I58: Other | J58: adjustments | K58: Adjusted
B59: R thousand | D59: appropriation | E59: appropriation | F59: overs | G59: unavoidable | H59: funds | I59: adjustments | J59: appropriation | K59: appropriation
B60: Plus:
B61: Total direct charges against the National Revenue Fund | D61: 537847189 | E61: – | F61: – | G61: – | H61: -50000 | I61: 6958776 | J61: 6908776 | K61: 544755965
B62: President and Deputy President salaries (The Presidency) | D62: 5726 | E62: – | F62: – | G62: – | H62: – | I62: – | J62: – | K62: 5726
B63: Members' remuneration (Parliament) | D63: 503132 | E63: – | F63: – | G63: – | H63: – | I63: – | J63: – | K63: 503132
B64: Debt service costs (National Treasury) | D64: 126440428 | E64: – | F64: – | G64: – | H64: – | I64: 1461590 | J64: 1461590 | K64: 127902018
B65: Provincial equitable share (National Treasury) | D65: 382673477 | E65: – | F65: – | G65: – | H65: – | I65: 3826532 | J65: 3826532 | K65: 386500009
B66: General fuel levy sharing with metropolitan municipalities (National Treasury) | D66: 10658909 | E66: – | F66: – | G66: – | H66: – | I66: – | J66: – | K66: 10658909
B67: National Revenue Fund payments (National Treasury) | D67: 121000 | E67: – | F67: – | G67: – | H67: – | I67: 560654 | J67: 560654 | K67: 681654
B68: Skills levy and sector education and | D68: 14690000 | E68: – | F68: – | G68: – | H68: – | I68: 1110000 | J68: 1110000 | K68: 15800000
B69: training authorities (Higher Education and Training)
B70: Magistrates' salaries (Justice and Constitutional Development) | D70: 1880769 | E70: – | F70: – | G70: – | H70: -50000 | I70: – | J70: -50000 | K70: 1830769
B71: Judges' salaries (Office of the Chief Justice and Judicial Administration) | D71: 873748 | E71: – | F71: – | G71: – | H71: – | I71: – | J71: – | K71: 873748
B73: Subtotal | D73: 1217344701 | E73: 25019000 | F73: 1616838 | G73: 753106 | H73: -3233696 | I73: 9630065 | J73: 8 766 313 | K73: 1251130014
B74: Unallocated reserves | D74: 5000000 | E74: – | F74: – | G74: – | H74: – | I74: -5000000 | J74: -5000000 | K74: –
B75: National government projected underspending | D75: – | E75: – | F75: – | G75: – | H75: – | I75: -3000000 | J75: -3000000 | K75: -3000000
B76: Local government repayment to the National Revenue Fund | E76: – | F76: – | G76: – | H76: – | I76: -1200000 | J76: -1200000 | K76: -1200000
B77: Total estimated expenditure | D77: 1 222 344 701 | E77: 25019000 | F77: 1616838 | G77: 753106 | H77: -3233696 | I77: 430065 | J77: (433 687) | K77: 1246930014

Sheet table 2.1
B1: Table 2.1: Adjusted appropriations per economic classification
B2: Economic classification | C2: 2015/16
E3: Adjustments appropriation
H4: Declared | J4: Total
C5: Main | D5: Special | E5: Roll- | F5: Unforeseeable/ | G5: Virements | H5: unspent | I5: Other | J5: adjustments | K5: Adjusted
B6: R thousand | C6: appropriation | D6: appropriation | E6: overs | F6: unavoidable | G6: and shifts | H6: funds | I6: adjustments | J6: appropriation | K6: appropriation
B7: Current payments
B8: Compensation of employees | C8: 137620242 | D8: – | E8: – | F8: 361671 | G8: -970395 | H8: -111900 | I8: 1119083 | J8: 398459 | K8: 138018701
B9: Goods and services | C9: 60069283 | D9: – | E9: 5000 | F9: 259239 | G9: 429043 | H9: -215413 | I9: 1170837 | J9: 1648706 | K9: 61717989
B10: Interest and rent on land | C10: 126489484 | D10: – | E10: – | F10: – | G10: 56030 | H10: – | I10: 1461590 | J10: 1517620 | K10: 128007104
B11: Total current payments | C11: 324179009 | D11: – | E11: 5000 | F11: 620910 | G11: -485322 | H11: -327313 | I11: 3751510 | J11: 3564785 | K11: 327743794
B12: Transfers and subsidies
B13: Provinces and municipalities | C13: 567961899 | D13: – | E13: 1498818 | F13: – | G13: 354751 | H13: -517996 | I13: 3826536 | J13: 5162109 | K13: 573124008
B14: Departmental agencies and accounts | C14: 95441971 | D14: – | E14: 8090 | F14: – | G14: -1306145 | H14: -1170987 | I14: 1490405 | J14: -978637 | K14: 94463334
B15: Higher education institutions | C15: 26405566 | D15: – | E15: – | F15: – | G15: 9714 | H15: – | I15: – | J15: 9714 | K15: 26415280
B16: Foreign governments and international organisations | C16: 1738823 | D16: – | E16: – | F16: 99090 | G16: -59394 | H16: – | I16: – | J16: 39696 | K16: 1778519
B17: Public corporations and private enterprises | C17: 36017669 | D17: – | E17: 35525 | F17: 33106 | G17: 144343 | H17: -615900 | I17: – | J17: -402926 | K17: 35614743
B18: Non-profit institutions | C18: 3251193 | D18: – | E18: – | F18: – | G18: 180700 | H18: – | I18: – | J18: 180700 | K18: 3431893
B19: Households | C19: 142160816 | D19: – | E19: – | F19: – | G19: 147874 | H19: -275000 | I19: 960 | J19: -126166 | K19: 142034650
B20: Total transfers and subsidies | C20: 872977937 | D20: – | E20: 1542433 | F20: 132196 | G20: -528157 | H20: -2579883 | I20: 5317901 | J20: 3884490 | K20: 876862427
B21: Payments for capital assets
B22: Buildings and other fixed structures | C22: 12964153 | D22: – | E22: 69405 | F22: – | G22: 282668 | H22: -264000 | I22: – | J22: 88073 | K22: 13052226
B23: Machinery and equipment | C23: 3669172 | D23: – | E23: – | F23: – | G23: 266323 | H23: -62500 | I23: – | J23: 203823 | K23: 3872995
B24: Heritage assets | C24: – | D24: – | E24: – | F24: – | G24: – | H24: – | I24: – | J24: – | K24: –
B25: Specialised military assets | C25: 12143 | D25: – | E25: – | F25: – | G25: – | H25: – | I25: – | J25: – | K25: 12143
B26: Biological and cultivated assets | C26: 8031 | D26: – | E26: – | F26: – | G26: 4668 | H26: – | I26: – | J26: 4668 | K26: 12699
B27: Land and subsoil assets | C27: – | D27: – | E27: – | F27: – | G27: – | H27: – | I27: – | J27: – | K27: –
B28: Software and other intangible assets | C28: 42572 | D28: – | E28: – | F28: – | G28: 79160 | H28: – | I28: – | J28: 79160 | K28: 121732
B29: Total payments for capital assets | C29: 16696071 | D29: – | E29: 69405 | F29: – | G29: 632819 | H29: -326500 | I29: – | J29: 375724 | K29: 17071795
B30: Total payments for financial assets | C30: 3491684 | D30: 25019000 | E30: – | F30: – | G30: 380660 | H30: – | I30: 560654 | J30: 941314 | K30: 29451998
B31: Subtotal | C31: 1217344701 | D31: 25019000 | E31: 1616838 | F31: 753106 | G31: – | H31: -3233696 | I31: 9630065 | J31: 8 766 313 | K31: 1251130014
B32: Unallocated reserves | C32: 5000000 | D32: – | E32: – | F32: – | G32: – | H32: – | I32: -5000000 | J32: -5000000 | K32: –
B33: National government projected underspending | C33: – | D33: – | E33: – | F33: – | G33: – | H33: – | I33: -3000000 | J33: -3000000 | K33: -3000000
B34: Local government repayment to the National Revenue Fund | C34: – | D34: – | E34: – | F34: – | G34: – | H34: – | I34: -1200000 | J34: -1200000 | K34: -1200000
B35: Total estimated expenditure | C35: 1222344701 | D35: 25019000 | E35: 1616838 | F35: 753106 | G35: – | H35: -3233696 | I35: 430065 | J35: (433 687) | K35: 1246930014

Sheet Table 3 and 4
B2: Table 3: Adjustments due to significant and unforeseeable economic and financial events
B3: Vote and description of expenditure | D3: R thousand
B4: National government public sector salary adjustments | D4: 1 173 468
B5: 2 | C5: Parliament | D5: 27316
B6: 4 | C6: Cooperative Governance and Traditional Affairs | D6: 2500
B7: 5 | C7: Home Affairs | D7: 68623
B8: 7 | C8: National Treasury | D8: 14257
B9: 8 | C9: Planning, Monitoring and Evaluation | D9: 2105
B10: 9 | C10: Public Enterprises | D10: 2007
B11: 10 | C11: Public Service and Administration | D11: 5614
B12: 12 | C12: Statistics South Africa | D12: 8643
B13: 13 | C13: Women | D13: 2100
B14: 15 | C14: Higher Education and Training | D14: 66783
B15: 16 | C15: Health | D15: 2190
B16: 19 | C16: Defence and Military Veterans | D16: 295420
B17: 21 | C17: Justice and Constitutional Development | D17: 112600
B18: 22 | C18: Office of the Chief Justice and Judicial Administration | D18: 15166
B19: 23 | C19: Police | D19: 423699
B20: 24 | C20: Agriculture, Forestry and Fisheries | D20: 42376
B21: 27 | C21: Environmental Affairs | D21: 15308
B22: 28 | C22: Labour | D22: 17367
B23: 29 | C23: Mineral Resources | D23: 20000
B24: 30 | C24: Science and Technology | D24: 3986
B25: 31 | C25: Small Business Development | D25: 1861
B26: 32 | C26: Telecommunications and Postal Services | D26: 1925
B27: 33 | C27: Tourism | D27: 3945
B28: 39 | C28: Rural Development and Land Reform | D28: 17677
B29: Provincial government public sector salary adjustments | D29: 3 826 532
B30: 7 | C30: National Treasury
C31: Provincial equitable share | D31: 3 826 532
B32: Total | D32: 5000000
B34: Table 4: Unforeseeable and unavoidable expenditure
B35: Vote and description of expenditure | D35: R thousand
B36: 6 | C36: International Relations and Cooperation | D36: 720000
C37: R720 million for the impact of the depreciation of the Rand on foreign currency denominated expenditure
B38: 9 | C38: Public Enterprises | D38: 33106
C39: R33.106 million for the tenth claim submitted for damages and losses in terms of the indemnity provided to Denel Aerostructures by government in respect of the A400M military aircraft contracts
B40: Total | D40: 753106

Sheet Table 5, 6, 7 and 8
B3: Table 5: Appropriation of expenditure earmarked in the 2015 Budget speech for future allocation
B4: Vote and description of expenditure | D4: R thousand
B5: 35 | C5: Transport | D5: 301000
C6: R301 million for the South African National Roads Agency for the Gauteng freeway improvement project
B7: Total | D7: 301000
B9: Table 6: Roll-overs
B10: Vote and description of expenditure | D10: R thousand
B11: 4 | C11: Cooperative Governance and Traditional Affairs | D11: 1 498 818
C12: R1.499 billion for the local government equitable share for municipalities to pay Eskom and / or Water Board accounts
B13: 10 | C13: Public Service and Administration | D13: 5000
C14: R5 million for the Public Service Remuneration Review Commission’s extended term
B15: 12 | C15: Statistics South Africa | D15: 69405
C16: R69.405 million for the capital contribution to the public private partnership project for the construction of the new head office building
B17: 23 | C17: Police | D17: 8090
C18: R8.090 million for the Civilian Secretariat for Police for payment of an IT network initiation fee, to the State Information Technology Agency
B19: 26 | C19: Energy | D19: 35525
C20: R35.525 million for the integrated national electrification programme for non-grid electrification service providers to provide electrification connection to households
B21: Total | D21: 1 616 838
B23: Table 7: Self-financing expenditure
B24: Vote and description of expenditure | D24: R thousand
B25: 4 | C25: Home Affairs | D25: 921500
C26: Expenditure incurred to issue official documentation, which is defrayed by revenue generated from the issuing of the documents
B27: 18 | C27: Correctional Services | D27: 970
C28: Expenditure for offender gratuities, which is funded from revenue generated by the hiring out of offender labour
B29: 19 | C29: Defence and Military Veterans | D29: 213351
C30: R182.2 million for expenditure incurred to deploy troops in the Democratic Republic of the Congo, which is reimbursed by the United Nations; and R31.2 million for defence activities that are funded from selling equipment and spares procured through the Special Defence Account
B31: 34 | C31: Trade and Industry | D31: 61000
C32: Unitary payment in respect of the public private partnership for shared campus accommodation, which is funded from unitary payments received from public entities
B33: Total | D33: 1 196 821
B35: Table 8: Declared unspent funds and projected underspending
B36: Vote and description of expenditure | D36: R thousand
B37: 7 | C37: National Treasury | D37: 264500
C38: R164.5 million from the Employment Creation Facilitation Fund and R100 million from the South African Revenue Service
B39: 11 | C39: Public Works | D39: 98865
C40: R60 million from the Property Management Trading Entity; R24.405 million from the expanded public works programme integrated grant for provinces; and R14.460 million from the social sector expanded public works programme incentive grant for provinces
B41: 14 | C41: Basic Education | D41: 224714
C42: R163.112 million from the education infrastructure grant; R30.243 million from the maths, science and technology grant; R18.334 million form the national school nutrition programme grant; R12.3 million from the HIV and AIDS (life skills education) grant; and R725 000 from the occupational specific dispensation for education sector therapists grant
B43: 15 | C43: Higher Education and Training | D43: 30600
C44: R28.5 million from compensation of employees; and R2.1 million from goods and services
B45: 16 | C45: Health | D45: 216283
C46: R66.582 million from the comprehensive HIV and AIDS grant; R62.5 million from the national health grant: health facility revitalisation component; R51.717 million from the health facility revitalisation grant; R18.623 million from the national health insurance grant; and R16.861 million from the national tertiary services grant
B47: 17 | C47: Social Development | D47: 275000
C48: R275 million in respect of a decrease in the estimate of social grant payments
B49: 18 | C49: Correctional Services | D49: 30000
C50: R30 million from compensation of employees
B51: 21 | C51: Justice and Constitutional Development | D51: 110000
C52: R60 million from IT services for integrated justice system projects; and R50 million from direct charges against the National Revenue Fund for magistrates’ salaries
B53: 23 | C53: Police | D53: 88000
C54: R88 million from the integrated justice system transversal project
B55: 24 | C55: Agriculture, Forestry and Fisheries | D55: 16633
C56: R11.226 million from the comprehensive agricultural support programme grant: infrastructure component; R4.055 million from the Ilima/Letsema projects grant; and R1.352 million from the land care programme grant
B57: 26 | C57: Energy | D57: 250000
C58: R250 million from the solar water heaters programme
B59: 27 | C59: Environmental Affairs | D59: 20000
C60: R10 million from the South African National Parks; R5 million from the expanded public works programme; and R5 million from the South African National Biodiversity Institute
B61: 30 | C61: Science and Technology | D61: 20000
C62: R7.5 million from the Council for Scientific and Industrial Research; R7.5 million from the National Research Foundation; and R5 million from travel and subsistence costs
B63: 33 | C63: Tourism | D63: 10000
C64: R10 million from the tourism incentive programme
B65: 34 | C65: Trade and Industry | D65: 134400
C66: R134.4 million from the special economic zones
B67: 35 | C67: Transport | D67: 43220
C68: R43.220 million from the provincial roads maintenance grant: roads maintenance component
B69: 36 | C69: Water and Sanitation | D69: 700 000
C70: R200 million from the Water Trading Entity; R200 million from the municipal water infrastructure indirect grant; R198 million from the Magalies Water for Pilansberg Scheme; R64 million from the regional bulk infrastructure indirect grant to local government; and R38 million from the water infrastructure development programme
B71: 37 | C71: Arts and Culture | D71: 93 812
C72: R54 million from capital works projects; R34.273 million from the community library services grant: capital heritage institutions component; R3.1 million from compensation of employees and office accommodation; and R2.439 million from the community library services grant: current component
B73: 38 | C73: Human Settlements | D73: 400000
C74: R400 million from the Social Housing Regulatory Authority
B75: 39 | C75: Rural Development and Land Reform | D75: 200000
C76: R200 million from the Agricultural Land Holding Account
B77: 40 | C77: Sport and Recreation South Africa | D77: 7669
C78: R4.069 million from the mass participation and sport development grant; and R3.6 million from compensation of employees and office accommodation
B79: Total declared unspent funds | D79: 3 233 696
B80: National government projected underspending | D80: 3 000 000
B81: Local government repayment to the National Revenue Fund | D81: 1200000
B82: Total | D82: 7 433 696

Sheet Table 9
B2: Table 9: Expenditure outcome for 2014/15 and actual expenditure for 2015/16
B3: Vote number and title | D3: 2014/15 | I3: 2015/16
D4: Audited outcome | I4: Actual expenditure
F5: Apr 14 - | H5: Apr 14 - | K5: Apr 15 -
F6: 2015-09-14 | H6: 2015-03-15 | K6: 2015-09-15
F7: % of | H7: % of | K7: % of
D8: Adjusted | E8: Apr 14 - | F8: adjusted | G8: Apr 14 - | H8: adjusted | I8: Adjusted | J8: Apr 15 - | K8: adjusted
B9: R thousand | D9: appropriation | E9: Sep 14 | F9: appropriation | G9: 2015-03-15 | H9: appropriation | I9: appropriation | J9: Sep 15 | K9: appropriation
B10: 1 | C10: The Presidency | D10: 484484 | E10: 201975 | F10: 41.7 | G10: 452746 | H10: 93.4 | I10: 475929 | J10: 209276 | K10: 44
B11: 2 | C11: Parliament | D11: 1508170 | E11: 670558 | F11: 44.5 | G11: 1667845 | H11: 110.6 | I11: 1594238 | J11: 826164 | K11: 51.8
B12: 3 | C12: Communications | D12: 1295287 | E12: 594949 | F12: 45.9 | G12: 1287210 | H12: 99.4 | I12: 1290888 | J12: 621574 | K12: 48.2
B13: 4 | C13: Cooperative Governance and Traditional Affairs | D13: 63453885 | E13: 23434460 | F13: 36.9 | G13: 59477784 | H13: 93.7 | I13: 70815477 | J13: 29517213 | K13: 41.7
B14: 5 | C14: Home Affairs | D14: 7144801 | E14: 3574934 | F14: 50 | G14: 7144427 | H14: 100 | I14: 7348725 | J14: 3415765 | K14: 46.5
B15: 6 | C15: International Relations and Cooperation | D15: 6104324 | E15: 2716038 | F15: 44.5 | G15: 5991552 | H15: 98.2 | I15: 6510854 | J15: 2758467 | K15: 42.4
B16: 7 | C16: National Treasury | D16: 26703923 | E16: 11404823 | F16: 42.7 | G16: 26182531 | H16: 98 | I16: 28726061 | J16: 11352504 | K16: 39.5
B17: 8 | C17: Planning, Monitoring and Evaluation | D17: 733842 | E17: 363426 | F17: 49.5 | G17: 709147 | H17: 96.6 | I17: 754200 | J17: 352634 | K17: 46.8
B18: 9 | C18: Public Enterprises | D18: 319538 | E18: 102731 | F18: 32.1 | G18: 296052 | H18: 92.7 | I18: 23302594 | J18: 10100184 | K18: 43.3
B19: 10 | C19: Public Service and Administration | D19: 875074 | E19: 399888 | F19: 45.7 | G19: 813826 | H19: 93 | I19: 941482 | J19: 426999 | K19: 45.4
B20: 11 | C20: Public Works | D20: 6121320 | E20: 3013842 | F20: 49.2 | G20: 6022038 | H20: 98.4 | I20: 6312222 | J20: 2498709 | K20: 39.6
B21: 12 | C21: Statistics South Africa | D21: 2242514 | E21: 871979 | F21: 38.9 | G21: 2156435 | H21: 96.2 | I21: 2323256 | J21: 1032550 | K21: 44.4
B22: 13 | C22: Women | D22: 180754 | E22: 77222 | F22: 42.7 | G22: 177528 | H22: 98.2 | I22: 189102 | J22: 94050 | K22: 49.7
B23: 14 | C23: Basic Education | D23: 19689873 | E23: 10768229 | F23: 54.7 | G23: 19528903 | H23: 99.2 | I23: 21286426 | J23: 12293863 | K23: 57.8
B24: 15 | C24: Higher Education and Training | D24: 38988456 | E24: 27373672 | F24: 70.2 | G24: 38987296 | H24: 100 | I24: 41880138 | J24: 29491422 | K24: 70.4
B25: 16 | C25: Health | D25: 34325087 | E25: 16212235 | F25: 47.2 | G25: 33579172 | H25: 97.8 | I25: 36253925 | J25: 18132380 | K25: 50
B26: 17 | C26: Social Development | D26: 128597654 | E26: 63305661 | F26: 49.2 | G26: 127860470 | H26: 99.4 | I26: 137893640 | J26: 67654308 | K26: 49.1
B27: 18 | C27: Correctional Services | D27: 19721839 | E27: 9291266 | F27: 47.1 | G27: 19529254 | H27: 99 | I27: 20588554 | J27: 9876257 | K27: 48
B28: 19 | C28: Defence and Military Veterans | D28: 42856879 | E28: 18712682 | F28: 43.7 | G28: 42842381 | H28: 100 | I28: 45088161 | J28: 20747860 | K28: 46
B29: 20 | C29: Independent Police Investigative Directorate | D29: 234719 | E29: 86279 | F29: 36.8 | G29: 232404 | H29: 99 | I29: 234781 | J29: 112896 | K29: 48.1
B30: 21 | C30: Justice and Constitutional Development | D30: 14488940 | E30: 6305100 | F30: 43.5 | G30: 14228268 | H30: 98.2 | I30: 15010773 | J30: 6915238 | K30: 46.1
B31: 22 | C31: Office of the Chief Justice and Judicial Administration | D31: 669931 | E31: 297380 | F31: 44.4 | G31: 669931 | H31: 100 | I31: 783379 | J31: 306613 | K31: 39.1
B32: 23 | C32: Police | D32: 72507243 | E32: 34319828 | F32: 47.3 | G32: 72507225 | H32: 100 | I32: 76720848 | J32: 36004490 | K32: 46.9
B33: 24 | C33: Agriculture, Forestry and Fisheries | D33: 6692383 | E33: 3440767 | F33: 51.4 | G33: 6628873 | H33: 99.1 | I33: 6408750 | J33: 3466969 | K33: 54.1
B34: 25 | C34: Economic Development | D34: 696860 | E34: 318493 | F34: 45.7 | G34: 694912 | H34: 99.7 | I34: 885778 | J34: 423927 | K34: 47.9
B35: 26 | C35: Energy | D35: 7437794 | E35: 3513937 | F35: 47.2 | G35: 6220113 | H35: 83.6 | I35: 7267619 | J35: 4549691 | K35: 62.6
B36: 27 | C36: Environmental Affairs | D36: 5680386 | E36: 2409055 | F36: 42.4 | G36: 5675059 | H36: 99.9 | I36: 5943297 | J36: 2861532 | K36: 48.1
B37: 28 | C37: Labour | D37: 2546292 | E37: 1202189 | F37: 47.2 | G37: 2419936 | H37: 95 | I37: 2704234 | J37: 1218143 | K37: 45
B38: 29 | C38: Mineral Resources | D38: 1475541 | E38: 832282 | F38: 56.4 | G38: 1475157 | H38: 100 | I38: 1638542 | J38: 924816 | K38: 56.4
B39: 30 | C39: Science and Technology | D39: 6479890 | E39: 3608516 | F39: 55.7 | G39: 6389044 | H39: 98.6 | I39: 7466106 | J39: 4850278 | K39: 65
B40: 31 | C40: Small Business Development | D40: 1100789 | E40: – | F40: – | G40: 1100789 | H40: 100 | I40: 1127520 | J40: 547719 | K40: 48.6
B41: 32 | C41: Telecommunications and Postal Services | D41: 1616415 | E41: 611467 | F41: 37.8 | G41: 1568078 | H41: 97 | I41: 1405253 | J41: 791912 | K41: 56.4
B42: 33 | C42: Tourism | D42: 1583260 | E42: 994334 | F42: 62.8 | G42: 1557594 | H42: 98.4 | I42: 1794178 | J42: 932326 | K42: 52
B43: 34 | C43: Trade and Industry | D43: 8817940 | E43: 4001072 | F43: 45.4 | G43: 8684510 | H43: 98.5 | I43: 9497844 | J43: 3622653 | K43: 38.1
B44: 35 | C44: Transport | D44: 48770669 | E44: 25938423 | F44: 53.2 | G44: 49147098 | H44: 100.8 | I44: 53615077 | J44: 27194749 | K44: 50.7
B45: 36 | C45: Water and Sanitation | D45: 13647401 | E45: 3565645 | F45: 26.1 | G45: 11616682 | H45: 85.1 | I45: 15746530 | J45: 4807732 | K45: 30.5
B46: 37 | C46: Arts and Culture | D46: 3527748 | E46: 1551325 | F46: 44 | G46: 3454236 | H46: 97.9 | I46: 3826047 | J46: 1728457 | K46: 45.2
B47: 38 | C47: Human Settlements | D47: 29417605 | E47: 11422779 | F47: 38.8 | G47: 29358232 | H47: 99.8 | I47: 30543381 | J47: 13126906 | K47: 43
B48: 39 | C48: Rural Development and Land Reform | D48: 9455305 | E48: 4459159 | F48: 47.2 | G48: 9395755 | H48: 99.4 | I48: 9197361 | J48: 3611255 | K48: 39.3
B49: 40 | C49: Sport and Recreation South Africa | D49: 970404 | E49: 412399 | F49: 42.5 | G49: 967389 | H49: 99.7 | I49: 980879 | J49: 423485 | K49: 43.2
B50: Total expenditure by vote | D50: 639165219 | E50: 302380999 | F50: 47.3 | G50: 628697882 | H50: 98.4 | I50: 706374049 | J50: 339823966 | K50: 48.1
B52: Table 9: Expenditure outcome for 2014/15 and actual expenditure for 2015/16 (continued)
D53: 2014/15 | J53: 2015/16
D54: Audited outcome | J54: Actual expenditure
F55: Apr 14 - | H55: Apr 14 - | K55: Apr 15 -
F56: 2015-09-14 | H56: 2015-03-15 | K56: 2015-09-15
F57: % of | H57: % of | K57: % of
D58: Adjusted | E58: Apr 14 - | F58: adjusted | G58: Apr 14 - | H58: adjusted | I58: Adjusted | J58: Apr 15 - | K58: adjusted
B59: R thousand | D59: appropriation | E59: Sep 14 | F59: appropriation | G59: 2015-03-15 | H59: appropriation | I59: appropriation | J59: Sep 15 | K59: appropriation
B60: Plus:
B61: Total direct charges against the National Revenue Fund | D61: 501324556 | E61: 249322434 | F61: 49.7 | G61: 503253930 | H61: 100.4 | I61: 544755965 | J61: 266 996 565 | K61: 49
B62: President and Deputy President salaries (The Presidency) | D62: 5450 | E62: 2176 | F62: 39.9 | G62: 4830 | H62: 88.6 | I62: 5726 | J62: 2809 | K62: 49.1
B63: Members' remuneration (Parliament) | D63: 481006 | E63: 193132 | F63: 40.2 | G63: 479803 | H63: 99.7 | I63: 503132 | J63: 207763 | K63: 41.3
B64: Debt service costs (National Treasury) | D64: 114485032 | E64: 56562896 | F64: 49.4 | G64: 114798415 | H64: 100.3 | I64: 127902018 | J64: 62 645 110 | K64: 49
B65: Provincial equitable share (National Treasury) | D65: 359921783 | E65: 181234048 | F65: 50.4 | G65: 359921783 | H65: 100 | I65: 386500009 | J65: 191336757 | K65: 49.5
B66: General fuel levy sharing with metropolitan municipalities (National Treasury) | D66: 10190162 | E66: 3396721 | F66: 33.3 | G66: 10190162 | H66: 100 | I66: 10658909 | J66: 3552969 | K66: 33.3
B67: National Revenue Fund payments (National Treasury) | D67: 310857 | E67: 310857 | F67: 100 | G67: 1525543 | H67: 490.8 | I67: 681654 | J67: 512424 | K67: 75.2
B68: Skills levy and sector education and training authorities (Higher Education and Training) | D68: 13200000 | E68: 6415632 | F68: 48.6 | G68: 13838798 | H68: 104.8 | I68: 15800000 | J68: 7502166 | K68: 47.5
B69: Magistrates' salaries (Justice and Constitutional Development) | D69: 1858031 | E69: 789722 | F69: 42.5 | G69: 1622361 | H69: 87.3 | I69: 1830769 | J69: 817564 | K69: 44.7
B70: Judges' salaries (Office of the Chief Justice and Judicial Administration) | D70: 872235 | E70: 417250 | F70: 47.8 | G70: 872235 | H70: 100 | I70: 873748 | J70: 419003 | K70: 48
B71: Total | D71: 1140489775 | E71: 551703433 | F71: 48.4 | G71: 1131951812 | H71: 99.3 | I71: 1251130014 | J71: 606820531 | K71: 48.5
B72: Economic classification
B73: Current payments
B74: Compensation of employees | D74: 128590700 | E74: 62631537 | F74: 48.7 | G74: 127395233 | H74: 99.1 | I74: 138018701 | J74: 66541090 | K74: 48.2
B75: Goods and services | D75: 61298576 | E75: 23924686 | F75: 39 | G75: 58046031 | H75: 94.7 | I75: 61717989 | J75: 26770726 | K75: 43.4
B76: Interest and rent on land | D76: 114535504 | E76: 56568238 | F76: 49.4 | G76: 114901760 | H76: 100.3 | I76: 128007104 | J76: 62 675 765 | K76: 49
B77: Total current payments | D77: 304424780 | E77: 143124461 | F77: 47 | G77: 300343024 | H77: 98.7 | I77: 327743794 | J77: 155 987 581 | K77: 47.6
B78: Transfers and subsidies
B79: Provinces and municipalities | D79: 530891055 | E79: 253964951 | F79: 47.8 | G79: 527542386 | H79: 99.4 | I79: 573124008 | J79: 275339915 | K79: 48
B80: Departmental agencies and accounts | D80: 87936127 | E80: 44464467 | F80: 50.6 | G80: 87719477 | H80: 99.8 | I80: 94463334 | J80: 48678661 | K80: 51.5
B81: Higher education institutions | D81: 24385573 | E81: 19173492 | F81: 78.6 | G81: 24469782 | H81: 100.3 | I81: 26415280 | J81: 20541720 | K81: 77.8
B82: Foreign governments and international organisations | D82: 1727324 | E82: 343842 | F82: 19.9 | G82: 1802384 | H82: 104.3 | I82: 1778519 | J82: 364663 | K82: 20.5
B83: Public corporations and private enterprises | D83: 33114371 | E83: 17966976 | F83: 54.3 | G83: 32223716 | H83: 97.3 | I83: 35614743 | J83: 19424177 | K83: 54.5
B84: Non-profit institutions | D84: 5234458 | E84: 2507796 | F84: 47.9 | G84: 5235981 | H84: 100 | I84: 3431893 | J84: 1574626 | K84: 45.9
B85: Households | D85: 132347019 | E85: 64138008 | F85: 48.5 | G85: 131522064 | H85: 99.4 | I85: 142034650 | J85: 68524129 | K85: 48.2
B86: Total transfers and subsidies | D86: 815635927 | E86: 402559532 | F86: 49.4 | G86: 810515790 | H86: 99.4 | I86: 876862427 | J86: 434447891 | K86: 49.5
B87: Payments for capital assets
B88: Buildings and other fixed structures | D88: 12560400 | E88: 3450813 | F88: 27.5 | G88: 10867455 | H88: 86.5 | I88: 13052226 | J88: 3772103 | K88: 28.9
B89: Machinery and equipment | D89: 3812252 | E89: 1132179 | F89: 29.7 | G89: 4861394 | H89: 127.5 | I89: 3872995 | J89: 860263 | K89: 22.2
B90: Heritage assets | D90: – | E90: – | F90: – | G90: 1964 | H90: – | I90: – | J90: – | K90: –
B91: Specialised military assets | D91: 45293 | E91: 6337 | F91: 14 | G91: 4386 | H91: 9.7 | I91: 12143 | J91: 15549 | K91: 128
B92: Biological assets | D92: 7148 | E92: 967 | F92: 13.5 | G92: 3378 | H92: 47.3 | I92: 12699 | J92: 1362 | K92: 10.7
B93: Land and subsoil assets | D93: 896 | E93: 32748 | F93: 3654.9 | G93: 226682 | H93: 25299.3 | I93: – | J93: 80293 | K93: –
B94: Software and other intangible assets | D94: 49409 | E94: 17849 | F94: 36.1 | G94: 75752 | H94: 153.3 | I94: 121732 | J94: 23616 | K94: 19.4
B95: Total payments for capital assets | D95: 16475398 | E95: 4640893 | F95: 28.2 | G95: 16041011 | H95: 97.4 | I95: 17071795 | J95: 4753186 | K95: 27.8
B96: Total payments for financial assets | D96: 3953670 | E96: 1378547 | F96: 34.9 | G96: 5051987 | H96: 127.8 | I96: 29451998 | J96: 11631873 | K96: 39.5
B97: Total | D97: 1140489775 | E97: 551703433 | F97: 48.4 | G97: 1131951812 | H97: 99.3 | I97: 1251130014 | J97: 606 820 531 | K97: 48.5

Sheet Table 10
B3: Table 10: Departmental receipts
B4: Vote number and title | E4: 2014/15 | I4: 2015/16
E5: Audited outcome | I5: Actual receipts
F6: Apr 14 - | H6: Apr 14 - | L6: Apr 15 -
F7: 2015-09-14 | H7: 2015-03-15 | L7: 2015-09-15
F8: % of | H8: % of | L8: % of
D9: Adjusted | E9: Apr 14 - | F9: adjusted | G9: Apr 14 - | H9: adjusted | I9: Budget | J9: Adjusted | K9: Apr 15 - | L9: adjusted
B10: R thousand | D10: estimate | E10: 2015-09-14 | F10: estimate | G10: 2015-03-15 | H10: estimate | I10: estimate | J10: estimate | K10: 2015-09-15 | L10: estimate
B11: 1 | C11: The Presidency | D11: 1161 | E11: 549 | F11: 47.3 | G11: 1726 | H11: 148.7 | I11: 925 | J11: 2972 | K11: 2618 | L11: 88.1
B12: 2 | C12: Parliament | D12: 39013 | E12: 18043 | F12: 46.2 | G12: 49081 | H12: 125.8 | J12: 34093 | K12: 15416 | L12: 50.2
B13: 3 | C13: Communications | D13: 2 393 | E13: 1243 | F13: 51.9 | G13: 2527 | H13: 105.6 | I13: 1025126 | J13: 4042 | K13: 2383 | L13: 59
B14: 4 | C14: Cooperative Governance and Traditional Affairs | D14: 988 | E14: 393 | F14: 39.8 | G14: 1916 | H14: 193.9 | I14: 1043 | J14: 1148 | K14: 564 | L14: 49.1
B15: 5 | C15: Home Affairs | D15: 365461 | E15: 319410 | F15: 87.4 | G15: 767104 | H15: 209.9 | I15: 790791 | J15: 921911 | K15: 336731 | L15: 36.5
B16: 6 | C16: International Relations and Cooperation | D16: 46189 | E16: 31977 | F16: 69.2 | G16: 35147 | H16: 76.1 | I16: 48182 | J16: 41846 | K16: 13928 | L16: 33.3
B17: 7 | C17: National Treasury | D17: 12418637 | E17: 8362076 | F17: 67.3 | G17: 18246100 | H17: 146.9 | I17: 6057867 | J17: 13157419 | K17: 7001447 | L17: 53.2
B18: 8 | C18: Planning, Monitoring and Evaluation | D18: 92 | E18: 40 | F18: 43.5 | G18: 88 | H18: 95.7 | I18: 92 | J18: 266 | K18: 189 | L18: 71.1
B19: 9 | C19: Public Enterprises | D19: 202 | E19: 37 | F19: 18.3 | G19: 203 | H19: 100.5 | I19: 107 | J19: 1161 | K19: 167 | L19: 14.4
B20: 10 | C20: Public Service and Administration | D20: 1202 | E20: 784 | F20: 65.2 | G20: 979 | H20: 81.4 | I20: 867 | J20: 1460 | K20: 1135 | L20: 77.7
B21: 11 | C21: Public Works | D21: 13238 | E21: 8033 | F21: 60.7 | G21: 16132 | H21: 121.9 | I21: 1878 | J21: 1878 | K21: 1328 | L21: 70.7
B22: 12 | C22: Statistics South Africa | D22: 4873 | E22: 4035 | F22: 82.8 | G22: 5003 | H22: 102.7 | I22: 2207 | J22: 2924 | K22: 2362 | L22: 80.8
B23: 13 | C23: Women | D23: 30 | E23: 15 | F23: 50 | G23: 24 | H23: 80 | I23: 32 | J23: 32 | K23: 16 | L23: 50
B24: 14 | C24: Basic Education | D24: 70000 | E24: 47984 | F24: 68.5 | G24: 57572 | H24: 82.2 | I24: 6080 | J24: 12067 | K24: 6659 | L24: 55.2
B25: 15 | C25: Higher Education and Training | D25: 10323 | E25: 6040 | F25: 58.5 | G25: 11594 | H25: 112.3 | I25: 10864 | J25: 14143 | K25: 7615 | L25: 53.8
B26: 16 | C26: Health | D26: 69819 | E26: 39419 | F26: 56.5 | G26: 66140 | H26: 94.7 | I26: 32772 | J26: 44605 | K26: 29463 | L26: 66.1
B27: 17 | C27: Social Development | D27: 18000 | E27: 363 | F27: 2 | G27: 62895 | H27: 349.4 | I27: 57819 | J27: 57819 | K27: 254 | L27: 0.4
B28: 18 | C28: Correctional Services | D28: 126303 | E28: 61302 | F28: 48.5 | G28: 139752 | H28: 110.6 | I28: 124437 | J28: 124437 | K28: 63550 | L28: 51.1
B29: 19 | C29: Defence and Military Veterans | D29: 814908 | E29: 270408 | F29: 33.2 | G29: 923792 | H29: 113.4 | I29: 818166 | J29: 818166 | K29: 301452 | L29: 36.8
B30: 20 | C30: Independent Police Investigative Directorate | D30: 244 | E30: 161 | F30: 66 | G30: 706 | H30: 289.3 | I30: 255 | J30: 178 | K30: 75 | L30: 42.1
B31: 21 | C31: Justice and Constitutional Development | D31: 300909 | E31: 160888 | F31: 53.5 | G31: 337557 | H31: 112.2 | I31: 368690 | J31: 300954 | K31: 147478 | L31: 49
B32: 22 | C32: Office of the Chief Justice and Judicial Administration | D32: – | E32: – | F32: – | G32: – | H32: – | I32: – | J32: 354 | K32: 354 | L32: 100
B33: 23 | C33: Police | D33: 313884 | E33: 178580 | F33: 56.9 | G33: 389406 | H33: 124.1 | I33: 287901 | J33: 343841 | K33: 213738 | L33: 62.2
B34: 24 | C34: Agriculture, Forestry and Fisheries | D34: 186116 | E34: 96013 | F34: 51.6 | G34: 191652 | H34: 103 | I34: 198398 | J34: 206326 | K34: 111509 | L34: 54
B35: 25 | C35: Economic Development | D35: 900221 | E35: 572310 | F35: 63.6 | G35: 50367 | H35: 5.6 | I35: 867313 | J35: 668650 | K35: 506515 | L35: 75.8
B36: 26 | C36: Energy | D36: 3255 | E36: 1880 | F36: 57.8 | G36: 5277 | H36: 162.1 | I36: 2899 | J36: 3950 | K36: 2608 | L36: 66
B37: 27 | C37: Environmental Affairs | D37: 29832 | E37: 18047 | F37: 60.5 | G37: 32022 | H37: 107.3 | I37: 30109 | J37: 10955 | K37: 5622 | L37: 51.3
B38: 28 | C38: Labour | D38: 10092 | E38: 5363 | F38: 53.1 | G38: 11155 | H38: 110.5 | I38: 10903 | J38: 12813 | K38: 5081 | L38: 39.7
B39: 29 | C39: Mineral Resources | D39: 45113 | E39: 23372 | F39: 51.8 | G39: 46207 | H39: 102.4 | I39: 118351 | J39: 34402 | K39: 16036 | L39: 46.6
B40: 30 | C40: Science and Technology | D40: 116 | E40: 41 | F40: 35.3 | G40: 1602 | H40: 1381 | I40: 121 | J40: 357 | K40: 239 | L40: 66.9
B41: 31 | C41: Small Business Development | D41: – | E41: – | F41: – | G41: – | H41: – | I41: – | J41: 180 | K41: 91 | L41: 50.6
B42: 32 | C42: Telecommunications and Postal Services | D42: 1745219 | E42: 892901 | F42: 51.2 | G42: 1670224 | H42: 95.7 | I42: 1669902 | J42: 27585323 | K42: 13934289 | L42: 50.5
B43: 33 | C43: Tourism | D43: 3486 | E43: 1936 | F43: 55.5 | G43: 3504 | H43: 100.5 | I43: 1769 | J43: 1864 | K43: 938 | L43: 50.3
B44: 34 | C44: Trade and Industry | D44: 85015 | E44: 40334 | F44: 47.4 | G44: 82551 | H44: 97.1 | I44: 83141 | J44: 81996 | K44: 22427 | L44: 27.4
B45: 35 | C45: Transport | D45: 233479 | E45: 224939 | F45: 96.3 | G45: 322107 | H45: 138 | I45: 80839 | J45: 210252 | K45: 208082 | L45: 99
B46: 36 | C46: Water and Sanitation | D46: 57020 | E46: 39608 | F46: 69.5 | G46: 15333 | H46: 26.9 | I46: 26582 | J46: 19092 | K46: 5746 | L46: 30.1
B47: 37 | C47: Arts and Culture | D47: 667 | E47: 402 | F47: 60.3 | G47: 3301 | H47: 494.9 | I47: 754 | J47: 3205 | K47: 2480 | L47: 77.4
B48: 38 | C48: Human Settlements | D48: 1141 | E48: 618 | F48: 54.2 | G48: 1014 | H48: 88.9 | I48: 789 | J48: 1695 | K48: 924 | L48: 54.5
B49: 39 | C49: Rural Development and Land Reform | D49: 85077 | E49: 44009 | F49: 51.7 | G49: 87439 | H49: 102.8 | I49: 88737 | J49: 91431 | K49: 24186 | L49: 26.5
B50: 40 | C50: Sport and Recreation South Africa | D50: 331 | E50: 44 | F50: 13.3 | G50: 107 | H50: 32.3 | I50: 103 | J50: 273 | K50: 204 | L50: 74.7
B51: Subtotal departmental receipts as per Adjusted Estimates of National Expenditure | D51: 18 004 049 | E51: 11 473 597 | F51: 63.7 | G51: 23639306 | H51: 131.3 | I51: 12850904 | J51: 44817112 | K51: 22995899 | L51: 51.3
B52: Less: Parliament (retained departmental receipts) | D52: 39013 | E52: 18043 | F52: 46.2 | G52: 49081 | H52: 125.8 | I52: 34093 | J52: 30725 | K52: 15416 | L52: 50.2
B53: Plus: South African Revenue Services | D53: 6791578 | E53: 3098307 | F53: 45.6 | G53: 5413151 | H53: 79.7 | I53: 6220717 | J53: 3200000 | K53: 1495657 | L53: 46.7
B54: Total departmental receipts | D54: 24 756 614 | E54: 14553861 | F54: 58.8 | G54: 29003376 | H54: 117.2 | I54: 19037528 | J54: 47986387 | K54: 24476140 | L54: 51
B57: Table 10: Departmental receipts (continued)
B58: Economic classification | D58: 2014/15 | I58: 2015/16
E59: Audited outcome | I59: Actual receipts
F60: Apr 14 - | H60: Apr 14 - | L60: Apr 15 -
F61: 2015-09-14 | H61: 2015-03-15 | L61: 2015-09-15
F62: % of | H62: % of | L62: % of
D63: Adjusted | E63: Apr 14 - | F63: adjusted | G63: Apr 14 - | H63: adjusted | I63: Budget | J63: Adjusted | K63: Apr 15 - | L63: adjusted
B64: R thousand | D64: estimate | E64: 2015-09-14 | F64: estimate | G64: 2015-03-15 | H64: estimate | I64: estimate | J64: estimate | K64: 2015-09-15 | L64: estimate
B65: Tax receipts | D65: 5360 | E65: 1248 | F65: 23.3 | G65: 2925 | H65: 54.6 | I65: 5440 | J65: 4110 | K65: 1352 | L65: 32.9
B66: Sales of goods and services other than capital assets | D66: 1253861 | E66: 781639 | F66: 62.3 | G66: 1677571 | H66: 133.8 | I66: 2562747 | J66: 1859720 | K66: 840143 | L66: 45.2
B67: Transfers received | D67: 175607 | E67: 92809 | F67: 52.9 | G67: 549922 | H67: 313.2 | I67: 185288 | J67: 187530 | K67: 95149 | L67: 50.7
B68: Fines, penalties and forfeits | D68: 1121830 | E68: 716520 | F68: 63.9 | G68: 293574 | H68: 26.2 | I68: 1199002 | J68: 890552 | K68: 634709 | L68: 71.3
B69: Interest, dividends and rent on land | D69: 5 569 116 | E69: 2 585 059 | F69: 46.4 | G69: 6678415 | H69: 119.9 | I69: 4895930 | J69: 6428400 | K69: 3084879 | L69: 48
B70: Sales of capital assets | D70: 78942 | E70: 25147 | F70: 31.9 | G70: 78068 | H70: 98.9 | I70: 80471 | J70: 91712 | K70: 35324 | L70: 38.5
B71: Financial transactions in assets and liabilities | D71: 9799333 | E71: 7271176 | F71: 74.2 | G71: 14358831 | H71: 146.5 | I71: 3922026 | J71: 35355088 | K71: 18304343 | L71: 51.8
B72: Subtotal departmental receipts as per Adjusted Estimates of National Expenditure | D72: 18 004 049 | E72: 11 473 597 | F72: 63.7 | G72: 23639306 | H72: 131.3 | I72: 12850904 | J72: 44817112 | K72: 22995899 | L72: 51.3
